fUSD/lending_fUSD_20250421
["ID","MTS","AMOUNT","RATE_DAILY","PERIOD"]
[358527664,1745235042589,-500.0,0.00047998,7]
[358527666,1745235042599,-500.0,0.00047998,7]
[358527668,1745235042608,-500.0,0.00047998,7]
[358527670,1745235042618,-538.24802769,0.00047998,7]
[358527673,1745235042629,-500.0,0.00047998,7]
[358527674,1745235042638,-500.0,0.00047998,7]
[358527676,1745235042649,-465.23,0.00047998,7]
[358527678,1745235042658,-500.0,0.00047998,7]
[358527681,1745235042669,-500.0,0.00047998,7]
[358527682,1745235042679,-719.84,0.00047998,7]
[358527684,1745235042688,-535.91366576,0.00047998,7]
[358527686,1745235042697,-500.0,0.00047998,7]
[358527688,1745235042706,-500.0,0.00047998,7]
[358527690,1745235042716,-646.47631652,0.00047998,7]
[358527693,1745235042726,-500.0,0.00047998,7]
[358527695,1745235042735,-500.0,0.00047998,7]
[358527697,1745235042745,-300.0,0.00047998,7]
[358527698,1745235042754,-5950.16031966,0.00047999,2]
[358527700,1745235042763,-9800.0,0.00048,17]
[358527702,1745235042771,-219.41,0.00048,120]
[358527704,1745235042780,-172.0,0.00048,90]
[358527706,1745235042790,-3104.01254894,0.0004804,15]
[358527708,1745235042799,-502.46816098,0.00048073,10]
[358527710,1745235042808,-209.00893444,0.00048073,10]
[358527712,1745235042818,-299.93494927,0.00048073,10]
[358527714,1745235042827,-623.76448604,0.00048073,10]
[358527716,1745235042836,-500.0,0.00048073,10]
[358527718,1745235042845,-500.0,0.00048073,10]
[358527720,1745235042855,-501.65762717,0.00048073,10]
[358527722,1745235042864,-171.61267469,0.00048073,10]
[358527725,1745235042875,-343.81005581,0.00048073,10]
[358527729,1745235042886,-500.0,0.00048073,10]
[358527731,1745235042895,-11431.0541851,0.0004808,5]
[358527734,1745235042904,-329.32316934,0.00048081,8]
[358527736,1745235042914,-22926.902947,0.0004809,4]
[358527739,1745235042923,-11431.0541851,0.0004809,5]
[358527743,1745235042933,-14700.0,0.000481,17]
[358527746,1745235042943,-380.07904311,0.000481,26]
[358527749,1745235042952,-150.0,0.00048108,7]
[358527752,1745235042962,-289.42437579,0.0004812,30]
[358527755,1745235042971,-734.5853996,0.00048161,2]
[358527758,1745235042980,-150.0,0.00048182,7]
[358527761,1745235042989,-1269.85,0.00048184,5]
[358527765,1745235042999,-1297.33,0.00048184,5]
[358527768,1745235043008,-3104.01254894,0.00048185,15]
[358527772,1745235043018,-11431.0541851,0.0004819,5]
[358527774,1745235043028,-19600.0,0.000482,17]
[358527777,1745235043037,-176.8979223,0.00048219,120]
[358527780,1745235043046,-150.0,0.00048228,7]
[358527783,1745235043055,-300.0,0.00048234,7]
[358527786,1745235043065,-150.0,0.00048252,7]
[358527789,1745235043074,-1271.59,0.00048274,5]
[358527792,1745235043084,-1242.21,0.00048274,5]
[358527794,1745235043093,-1226.96,0.00048274,5]
[358527796,1745235043102,-1250.32,0.00048274,5]
[358527798,1745235043112,-11431.0541851,0.0004828,5]
[358527800,1745235043123,-289.42437579,0.00048281,31]
[358527802,1745235043133,-22926.902947,0.0004829,4]
[358527805,1745235043143,-11431.0541851,0.0004829,5]
[358527807,1745235043153,-150.0,0.00048295,7]
[358527809,1745235043162,-24500.0,0.000483,17]
[358527811,1745235043171,-150.0,0.00048322,7]
[358527813,1745235043181,-3104.01254894,0.00048329,15]
[358527815,1745235043191,-150.0,0.00048329,7]
[358527817,1745235043200,-160.36743009,0.00048331,14]
[358527819,1745235043210,-11431.0541851,0.00048336,5]
[358527821,1745235043219,-300.79082128,0.00048346,7]
[358527823,1745235043228,-500.0,0.00048346,7]
[358527825,1745235043238,-500.0,0.00048346,7]
[358527827,1745235043247,-500.0,0.00048346,7]
[358527829,1745235043256,-544.66,0.00048346,7]
[358527831,1745235043266,-5281.67,0.00048346,7]
[358527833,1745235043275,-500.0,0.00048346,7]
[358527835,1745235043284,-500.0,0.00048346,7]
[358527837,1745235043294,-576.4988847,0.00048346,7]
[358527839,1745235043303,-500.0,0.00048346,7]
[358527841,1745235043312,-500.0,0.00048346,7]
[358527843,1745235043321,-500.0,0.00048346,7]
[358527845,1745235043330,-500.0,0.00048346,7]
[358527847,1745235043340,-500.0,0.00048346,7]
[358527849,1745235043349,-10690.476676,0.00048347,2]
[358527851,1745235043359,-150.0,0.00048348,7]
[358527853,1745235043369,-150.0,0.00048349,7]
[358527855,1745235043379,-1000.0,0.00048355,14]
[358527857,1745235043388,-154.03711879,0.00048355,7]
[358527859,1745235043398,-150.0,0.00048362,7]
[358527861,1745235043407,-150.0,0.00048366,7]
[358527864,1745235043416,-11431.0541851,0.0004837,5]
[358527866,1745235043430,-2246.84018034,0.0004838,2]
[358527868,1745235043439,-11431.0541851,0.0004838,5]
[358527870,1745235043448,-22926.902947,0.0004839,4]
[358527871,1745235043459,-57155.2709256,0.0004839,5]
[358527874,1745235043468,-500.0,0.00048399,7]
[358527875,1745235043477,-213.1,0.00048399,7]
[358527877,1745235043486,-4900.0,0.000484,17]
[358527880,1745235043496,-206301.7279568,0.000484,120]
[358527881,1745235043506,-150.0,0.00048426,7]
[358527883,1745235043516,-289.42437579,0.00048441,32]
[358527885,1745235043525,-734.5853996,0.00048462,2]
[358527887,1745235043535,-150.0,0.0004847,7]
[358527890,1745235043544,-3104.01254894,0.00048473,15]
[358527891,1745235043552,-150.0,0.00048484,7]
[358527894,1745235043565,-150.0,0.00048492,7]
[358527896,1745235043574,-183.04212,0.00048498,120]
[358527899,1745235043583,-461.10026164,0.00048499,2]
[358527901,1745235043593,-4900.0,0.000485,17]
[358527904,1745235043602,-734.5853996,0.00048521,2]
[358527906,1745235043611,-150.0,0.00048557,7]
[358527909,1745235043620,-150.0,0.00048567,7]
[358527912,1745235043630,-1183.6108832,0.0004858,120]
[358527915,1745235043639,-265.66,0.00048586,3]
[358527918,1745235043649,-500.0,0.00048586,3]
[358527920,1745235043659,-150.0,0.00048588,7]
[358527922,1745235043668,-150.0,0.00048589,7]
[358527924,1745235043677,-152.59,0.000486,45]
[358527926,1745235043686,-152.59,0.000486,45]
[358527928,1745235043695,-152.59,0.000486,45]
[358527930,1745235043705,-152.59,0.000486,45]
[358527932,1745235043715,-152.59,0.000486,45]
[358527934,1745235043726,-152.59,0.000486,45]
[358527936,1745235043735,-214.8,0.000486,45]
[358527938,1745235043744,-4900.0,0.000486,17]
[358527940,1745235043754,-289.42437579,0.00048601,32]
[358527942,1745235043764,-22926.902947,0.00048601,4]
[358527944,1745235043773,-150.0,0.00048607,7]
[358527946,1745235043783,-546.62,0.0004861,7]
[358527948,1745235043792,-938.53,0.0004861,7]
[358527950,1745235043801,-1541.21,0.0004861,2]
[358527952,1745235043810,-500.0,0.0004861,7]
[358527954,1745235043820,-500.0,0.0004861,7]
[358527956,1745235043830,-4092.5,0.0004861,7]
[358527958,1745235043840,-500.0,0.0004861,7]
[358527960,1745235043849,-773.29,0.0004861,7]
[358527962,1745235043859,-500.0,0.0004861,7]
[358527964,1745235043868,-1430.9,0.0004861,7]
[358527966,1745235043879,-29834.54286502,0.00048611,2]
[358527968,1745235043889,-3104.01254894,0.00048617,15]
[358527970,1745235043899,-150.0,0.00048621,7]
[358527972,1745235043908,-150.0,0.00048649,7]
[358527974,1745235043919,-2510.2322,0.0004866,2]
[358527976,1745235043930,-150.0,0.00048661,7]
[358527978,1745235043940,-150.0,0.00048661,7]
[358527980,1745235043950,-221.85598252,0.00048662,14]
[358527982,1745235043960,-150.0,0.00048663,7]
[358527984,1745235043969,-150.0,0.00048671,7]
[358527986,1745235043979,-319.34433626,0.00048673,10]
[358527988,1745235043989,-150.0,0.00048682,7]
[358527990,1745235043999,-530.0,0.00048694,5]
[358527992,1745235044009,-4900.0,0.000487,17]
[358527994,1745235044019,-180.01714351,0.00048704,7]
[358527996,1745235044030,-152.60382429,0.00048725,7]
[358527998,1745235044039,-22926.902947,0.00048729,4]
[358528000,1745235044048,-150.0,0.00048729,7]
[358528002,1745235044058,-22926.902947,0.0004873,4]
[358528004,1745235044068,-22926.902947,0.00048739,4]
[358528006,1745235044078,-500.0,0.0004874,7]
[358528008,1745235044088,-22926.902947,0.00048741,4]
[358528010,1745235044097,-546.62,0.00048748,7]
[358528012,1745235044106,-938.53,0.00048748,7]
[358528014,1745235044116,-1541.21,0.00048748,2]
[358528015,1745235044128,-500.0,0.00048748,7]
[358528016,1745235044137,-500.0,0.00048748,7]
[358528017,1745235044146,-4092.5,0.00048748,7]
[358528018,1745235044155,-500.0,0.00048748,7]
[358528019,1745235044165,-773.29,0.00048748,7]
[358528020,1745235044174,-1430.9,0.00048748,7]
[358528021,1745235044184,-22926.902947,0.00048748,4]
[358528022,1745235044193,-45853.805894,0.00048749,4]
[358528023,1745235044202,-229.41499577,0.00048749,7]
[358528024,1745235044211,-636.71,0.00048749,7]
[358528025,1745235044220,-1165.11,0.00048749,7]
[358528026,1745235044229,-500.0,0.00048749,7]
[358528028,1745235044238,-500.0,0.00048749,7]
[358528030,1745235044247,-567.84621715,0.00048749,7]
[358528032,1745235044257,-170.33126059,0.00048749,7]
[358528034,1745235044266,-509.72906875,0.00048749,7]
[358528035,1745235044275,-500.0,0.00048749,7]
[358528037,1745235044285,-500.0,0.00048749,7]
[358528040,1745235044295,-500.0,0.00048749,7]
[358528042,1745235044305,-500.0,0.00048749,7]
[358528044,1745235044315,-573.7,0.00048749,7]
[358528045,1745235044324,-500.0,0.00048749,7]
[358528047,1745235044334,-518.78,0.00048749,7]
[358528049,1745235044343,-500.0,0.00048749,7]
[358528051,1745235044353,-500.0,0.00048749,7]
[358528053,1745235044362,-500.0,0.00048749,7]
[358528055,1745235044371,-549.51,0.00048749,7]
[358528057,1745235044381,-500.0,0.00048749,7]
[358528070,1745235044497,-500.0,0.00048749,7]
[358528072,1745235044509,-500.0,0.00048749,7]
[358528074,1745235044520,-150.0,0.00048751,7]
[358528076,1745235044529,-6332.0139911,0.00048751,4]
[358528105,1745235044809,-39521.7919029,0.00048751,4]
[358528107,1745235044818,-500.0,0.00048755,7]
[358528109,1745235044828,-150.0,0.00048755,7]
[358528112,1745235044839,-150.0,0.00048757,3]
[358528114,1745235044848,-559.56,0.00048758,7]
[358528116,1745235044858,-500.0,0.00048758,7]
[358528118,1745235044867,-543.74077367,0.00048758,7]
[358528120,1745235044877,-500.0,0.00048758,7]
[358528121,1745235044887,-500.0,0.00048758,7]
[358528123,1745235044895,-547.60796594,0.00048758,7]
[358528125,1745235044906,-500.0,0.00048758,7]
[358528128,1745235044917,-500.0,0.00048758,7]
[358528130,1745235044928,-500.0,0.00048758,7]
[358528132,1745235044938,-500.0,0.00048758,7]
[358528134,1745235044948,-500.0,0.00048758,7]
[358528136,1745235044957,-500.0,0.00048758,7]
[358528138,1745235044967,-719.84,0.00048758,7]
[358528140,1745235044976,-544.66,0.00048758,7]
[358528142,1745235044987,-5281.67,0.00048758,7]
[358528143,1745235044996,-546.62,0.00048758,7]
[358528146,1745235045006,-500.0,0.00048758,7]
[358528147,1745235045015,-938.53,0.00048758,7]
[358528149,1745235045024,-162.75681349,0.00048758,7]
[358528151,1745235045034,-1541.21,0.00048758,2]
[358528154,1745235045044,-500.0,0.00048758,7]
[358528156,1745235045054,-500.0,0.00048758,7]
[358528158,1745235045063,-500.0,0.00048758,7]
[358528160,1745235045072,-500.0,0.00048758,7]
[358528162,1745235045082,-500.0,0.00048758,7]
[358528164,1745235045091,-500.0,0.00048758,7]
[358528166,1745235045101,-4092.5,0.00048758,7]
[358528168,1745235045111,-500.0,0.00048758,7]
[358528170,1745235045120,-500.0,0.00048758,7]
[358528172,1745235045130,-500.0,0.00048758,7]
[358528174,1745235045140,-773.29,0.00048758,7]
[358528176,1745235045149,-1430.9,0.00048758,7]
[358528178,1745235045159,-500.0,0.00048758,7]
[358528180,1745235045169,-174.0848,0.00048759,10]
[358528182,1745235045178,-500.0,0.00048759,7]
[358528184,1745235045193,-199.10089197,0.00048759,7]
[358528186,1745235045202,-500.0,0.00048759,7]
[358528188,1745235045212,-505.39295571,0.00048759,7]
[358528190,1745235045221,-500.0,0.00048759,7]
[358528192,1745235045230,-407.45219782,0.00048759,7]
[358528194,1745235045241,-528.53,0.00048759,7]
[358528196,1745235045251,-500.0,0.00048759,7]
[358528198,1745235045260,-511.2095851,0.00048759,7]
[358528200,1745235045269,-530.89504373,0.00048759,7]
[358528202,1745235045279,-519.68035074,0.00048759,7]
[358528204,1745235045289,-517.25861802,0.00048759,7]
[358528206,1745235045298,-522.23794724,0.00048759,7]
[358528208,1745235045307,-500.0,0.00048759,7]
[358528210,1745235045317,-500.0,0.00048759,7]
[358528212,1745235045326,-500.0,0.00048759,7]
[358528214,1745235045336,-514.22434345,0.00048759,7]
[358528216,1745235045345,-250.0,0.00048759,7]
[358528218,1745235045355,-500.0,0.00048759,7]
[358528220,1745235045365,-500.0,0.00048759,7]
[358528222,1745235045374,-518.09002428,0.00048759,7]
[358528224,1745235045384,-500.0,0.00048759,7]
[358528226,1745235045393,-500.0,0.00048759,7]
[358528228,1745235045402,-500.0,0.00048759,7]
[358528230,1745235045411,-500.0,0.00048759,7]
[358528232,1745235045422,-164.02108377,0.00048759,7]
[358528234,1745235045433,-500.0,0.00048759,7]
[358528236,1745235045442,-500.0,0.00048759,7]
[358528238,1745235045452,-500.0,0.00048759,7]
[358528240,1745235045462,-500.0,0.00048759,7]
[358528242,1745235045471,-514.12977325,0.00048759,7]
[358528244,1745235045481,-519.32851682,0.00048759,7]
[358528246,1745235045490,-500.0,0.00048759,7]
[358528248,1745235045499,-540.30237646,0.00048759,7]
[358528250,1745235045509,-629.84781352,0.00048759,7]
[358528252,1745235045519,-584.72,0.00048759,7]
[358528254,1745235045528,-512.62408005,0.00048759,7]
[358528256,1745235045537,-500.0,0.00048759,7]
[358528258,1745235045546,-500.0,0.00048759,7]
[358528260,1745235045556,-543.85444649,0.00048759,7]
[358528262,1745235045565,-500.0,0.00048759,7]
[358528264,1745235045574,-500.0,0.00048759,7]
[358528266,1745235045583,-523.67123264,0.00048759,7]
[358528268,1745235045592,-500.0,0.00048759,7]
[358528270,1745235045601,-511.33194378,0.00048759,7]
[358528272,1745235045610,-500.0,0.00048759,7]
[358528274,1745235045619,-544.42752104,0.00048759,7]
[358528276,1745235045630,-512.90726598,0.00048759,7]
[358528278,1745235045639,-500.0,0.00048759,7]
[358528280,1745235045648,-369.41525961,0.00048759,7]
[358528282,1745235045657,-500.0,0.00048759,2]
[358528284,1745235045667,-311.73434006,0.00048759,7]
[358528286,1745235045675,-500.0,0.00048759,7]
[358528288,1745235045685,-500.0,0.00048759,7]
[358528290,1745235045694,-500.0,0.00048759,7]
[358528292,1745235045703,-500.0,0.00048759,7]
[358528294,1745235045712,-500.0,0.00048759,7]
[358528296,1745235045722,-500.0,0.00048759,7]
[358528298,1745235045731,-548.37548356,0.00048759,7]
[358528301,1745235045740,-502.30352225,0.00048759,7]
[358528304,1745235045749,-500.0,0.00048759,7]
[358528306,1745235045759,-500.0,0.00048759,7]
[358528308,1745235045768,-500.0,0.00048759,7]
[358528310,1745235045777,-500.0,0.00048759,7]
[358528312,1745235045786,-500.0,0.00048759,7]
[358528314,1745235045795,-500.0,0.00048759,7]
[358528315,1745235045804,-500.0,0.00048759,7]
[358528316,1745235045813,-207.49750375,0.00048759,7]
[358528317,1745235045822,-506.38675903,0.00048759,7]
[358528318,1745235045831,-570.64823336,0.00048759,7]
[358528319,1745235045840,-500.0,0.00048759,7]
[358528321,1745235045849,-500.0,0.00048759,7]
[358528322,1745235045858,-500.0,0.00048759,7]
[358528323,1745235045867,-500.0,0.00048759,7]
[358528325,1745235045877,-500.0,0.00048759,7]
[358528327,1745235045886,-189.55287823,0.00048759,7]
[358528329,1745235045895,-500.0,0.00048759,7]
[358528330,1745235045904,-514.26326675,0.00048759,7]
[358528331,1745235045912,-513.54209878,0.00048759,7]
[358528332,1745235045922,-500.0,0.00048759,7]
[358528333,1745235045931,-500.0,0.00048759,7]
[358528334,1745235045940,-541.74971052,0.00048759,7]
[358528335,1745235045949,-500.0,0.00048759,7]
[358528336,1745235045959,-500.0,0.00048759,7]
[358528337,1745235045969,-500.0,0.00048759,7]
[358528338,1745235045978,-500.0,0.00048759,7]
[358528339,1745235045987,-500.0,0.00048759,7]
[358528340,1745235045996,-518.00561384,0.00048759,7]
[358528341,1745235046005,-500.0,0.00048759,7]
[358528342,1745235046015,-500.0,0.00048759,7]
[358528344,1745235046024,-500.0,0.00048759,7]
[358528346,1745235046033,-617.27,0.00048759,7]
[358528348,1745235046043,-500.0,0.00048759,7]
[358528350,1745235046052,-500.0,0.00048759,7]
[358528352,1745235046061,-500.0,0.00048759,7]
[358528354,1745235046070,-500.0,0.00048759,7]
[358528356,1745235046080,-534.86518278,0.00048759,7]
[358528358,1745235046089,-588.5342434,0.00048759,7]
[358528360,1745235046098,-500.0,0.00048759,7]
[358528362,1745235046107,-500.0,0.00048759,7]
[358528364,1745235046116,-504.07390783,0.00048759,7]
[358528365,1745235046126,-500.0,0.00048759,7]
[358528366,1745235046136,-418.97768901,0.00048759,7]
[358528367,1745235046147,-525.31475404,0.00048759,7]
[358528368,1745235046156,-500.0,0.00048759,7]
[358528369,1745235046166,-500.0,0.00048759,7]
[358528370,1745235046175,-641.66967959,0.00048759,7]
[358528371,1745235046184,-500.0,0.00048759,7]
[358528372,1745235046194,-500.0,0.00048759,7]
[358528374,1745235046203,-500.0,0.00048759,7]
[358528376,1745235046211,-519.87985157,0.00048759,7]
[358528378,1745235046220,-305.857106,0.00048759,7]
[358528380,1745235046230,-511.82518281,0.00048759,7]
[358528382,1745235046239,-780.57,0.00048759,7]
[358528384,1745235046248,-500.0,0.00048759,7]
[358528386,1745235046257,-500.0,0.00048759,7]
[358528388,1745235046267,-514.73421349,0.00048759,7]
[358528390,1745235046276,-500.0,0.00048759,7]
[358528392,1745235046285,-252.86449582,0.00048759,7]
[358528393,1745235046294,-500.0,0.00048759,7]
[358528395,1745235046303,-547.99640149,0.00048759,7]
[358528397,1745235046313,-338.57329336,0.00048759,7]
[358528398,1745235046322,-567.5341849,0.00048759,7]
[358528399,1745235046332,-500.0,0.00048759,7]
[358528400,1745235046341,-500.0,0.00048759,7]
[358528401,1745235046351,-500.0,0.00048759,7]
[358528402,1745235046361,-500.0,0.00048759,7]
[358528403,1745235046371,-516.48081853,0.00048759,7]
[358528404,1745235046408,-500.0,0.00048759,7]
[358528405,1745235046418,-514.31095016,0.00048759,7]
[358528406,1745235046430,-500.0,0.00048759,7]
[358528407,1745235046439,-575.97183244,0.00048759,7]
[358528408,1745235046448,-500.0,0.00048759,7]
[358528409,1745235046458,-203.46058736,0.00048759,7]
[358528410,1745235046467,-500.0,0.00048759,7]
[358528411,1745235046476,-509.67213527,0.00048759,7]
[358528412,1745235046485,-500.0,0.00048759,7]
[358528413,1745235046495,-497.14838046,0.00048759,7]
[358528414,1745235046505,-510.48658596,0.00048759,7]
[358528416,1745235046515,-500.0,0.00048759,7]
[358528418,1745235046524,-508.19358261,0.00048759,7]
[358528420,1745235046534,-647.81502433,0.00048759,7]
[358528422,1745235046543,-478.09306118,0.00048759,7]
[358528423,1745235046552,-500.0,0.00048759,7]
[358528424,1745235046562,-517.96380861,0.00048759,7]
[358528425,1745235046572,-551.60882629,0.00048759,7]
[358528426,1745235046581,-523.19346821,0.00048759,7]
[358528427,1745235046591,-515.02709183,0.00048759,7]
[358528429,1745235046600,-521.54529197,0.00048759,7]
[358528430,1745235046610,-500.0,0.00048759,7]
[358528431,1745235046622,-527.68140505,0.00048759,7]
[358528432,1745235046632,-537.79886844,0.00048759,7]
[358528433,1745235046641,-533.56,0.00048759,7]
[358528434,1745235046650,-570.58786029,0.00048759,7]
[358528435,1745235046660,-500.0,0.00048759,7]
[358528436,1745235046669,-738.74847946,0.00048759,7]
[358528437,1745235046678,-500.0,0.00048759,7]
[358528438,1745235046687,-184.9874649,0.00048759,7]
[358528439,1745235046696,-508.52585241,0.00048759,7]
[358528440,1745235046705,-500.0,0.00048759,7]
[358528441,1745235046714,-233.66,0.00048759,7]
[358528442,1745235046723,-500.0,0.00048759,7]
[358528443,1745235046733,-500.0,0.00048759,7]
[358528444,1745235046743,-566.2878573,0.00048759,7]
[358528445,1745235046752,-291.94913225,0.00048759,7]
[358528446,1745235046762,-500.0,0.00048759,7]
[358528447,1745235046772,-500.0,0.00048759,7]
[358528448,1745235046782,-500.0,0.00048759,7]
[358528449,1745235046792,-500.0,0.00048759,7]
[358528450,1745235046805,-500.0,0.00048759,7]
[358528451,1745235046814,-254.92889142,0.00048759,7]
[358528452,1745235046824,-502.57506222,0.00048759,7]
[358528453,1745235046834,-500.0,0.00048759,7]
[358528454,1745235046844,-505.09588526,0.00048759,7]
[358528455,1745235046853,-500.0,0.00048759,7]
[358528456,1745235046862,-579.60762912,0.00048759,7]
[358528457,1745235046870,-570.0768427,0.00048759,7]
[358528458,1745235046879,-500.0,0.00048759,7]
[358528459,1745235046888,-500.0,0.00048759,7]
[358528460,1745235046897,-500.0,0.00048759,7]
[358528461,1745235046907,-500.0,0.00048759,7]
[358528462,1745235046916,-182.24609953,0.00048759,7]
[358528463,1745235046925,-500.0,0.00048759,7]
[358528464,1745235046933,-1319.56,0.00048759,7]
[358528465,1745235046942,-240.6951948,0.00048759,7]
[358528466,1745235046951,-500.0,0.00048759,7]
[358528467,1745235046960,-500.0,0.00048759,7]
[358528468,1745235046969,-500.0,0.00048759,7]
[358528469,1745235046978,-498.00699001,0.00048759,7]
[358528470,1745235046987,-500.0,0.00048759,7]
[358528471,1745235046996,-523.38480097,0.00048759,7]
[358528472,1745235047006,-500.0,0.00048759,7]
[358528473,1745235047015,-500.0,0.00048759,7]
[358528474,1745235047025,-500.0,0.00048759,7]
[358528475,1745235047035,-500.0,0.00048759,7]
[358528476,1745235047045,-500.0,0.00048759,7]
[358528477,1745235047054,-500.0,0.00048759,7]
[358528478,1745235047063,-500.0,0.00048759,7]
[358528479,1745235047073,-536.2460923,0.00048759,7]
[358528480,1745235047083,-483.61157394,0.00048759,7]
[358528481,1745235047093,-500.0,0.00048759,7]
[358528482,1745235047103,-368.81310116,0.00048759,7]
[358528483,1745235047113,-500.0,0.00048759,7]
[358528484,1745235047123,-1104.55,0.00048759,7]
[358528485,1745235047132,-500.0,0.00048759,7]
[358528486,1745235047142,-500.0,0.00048759,7]
[358528487,1745235047152,-500.0,0.00048759,7]
[358528488,1745235047161,-512.69045638,0.00048759,7]
[358528489,1745235047171,-267.13372996,0.00048759,7]
[358528490,1745235047180,-8270.6681,0.0004876,2]
[358528491,1745235047190,-1000.0,0.0004876,2]
[358528492,1745235047199,-150.0,0.00048761,7]
[358528493,1745235047210,-289.42437579,0.00048761,33]
[358528494,1745235047220,-1186.16581381,0.00048761,2]
[358528495,1745235047230,-3104.01254894,0.00048761,15]
[358528496,1745235047240,-150.0,0.00048769,7]
[358528497,1745235047249,-500.0,0.00048773,10]
[358528498,1745235047258,-459.13962152,0.00048773,7]
[358528499,1745235047268,-150.0,0.00048792,7]
[358528500,1745235047277,-200.0,0.000488,76]
[358528501,1745235047287,-1905.0,0.000488,2]
[358528502,1745235047296,-5000.0,0.000488,5]
[358528503,1745235047306,-5100.0,0.000488,17]
[358528504,1745235047316,-527.054533,0.000488,14]
[358528505,1745235047326,-151.0,0.000488,14]
[358528506,1745235047335,-527.054533,0.000488,14]
[358528507,1745235047345,-151.0,0.000488,14]
[358528508,1745235047355,-151.0,0.000488,14]
[358528509,1745235047364,-256.876934,0.000488,14]
[358528510,1745235047374,-150.0,0.00048806,7]
[358528511,1745235047384,-3175.0,0.00048822,120]
[358528512,1745235047393,-546.62,0.00048829,7]
[358528513,1745235047403,-1541.21,0.00048829,2]
[358528514,1745235047414,-4092.5,0.00048829,7]
[358528515,1745235047426,-500.0,0.00048829,7]
[358528516,1745235047436,-773.29,0.00048829,7]
[358528517,1745235047446,-1430.9,0.00048829,7]
[358528518,1745235047456,-150.0,0.00048831,7]
[358528519,1745235047466,-500.0,0.00048834,7]
[358528520,1745235047476,-938.53,0.00048835,7]
[358528521,1745235047486,-500.0,0.00048835,7]
[358528522,1745235047496,-500.0,0.00048835,7]
[358528523,1745235047507,-546.62,0.00048837,7]
[358528524,1745235047517,-1541.21,0.00048837,2]
[358528525,1745235047527,-4092.5,0.00048837,7]
[358528526,1745235047537,-500.0,0.00048837,7]
[358528527,1745235047546,-773.29,0.00048837,7]
[358528528,1745235047556,-1430.9,0.00048837,7]
[358528529,1745235047566,-151.0,0.00048838,14]
[358528530,1745235047575,-152.573775,0.00048838,14]
[358528531,1745235047585,-544.66,0.00048838,7]
[358528532,1745235047596,-5281.67,0.00048838,7]
[358528533,1745235047606,-151.0,0.00048838,14]
[358528534,1745235047616,-938.53,0.00048838,7]
[358528535,1745235047627,-151.0,0.00048838,14]
[358528536,1745235047636,-151.0,0.00048838,14]
[358528537,1745235047646,-500.0,0.00048838,7]
[358528538,1745235047657,-500.0,0.00048838,7]
[358528539,1745235047666,-500.0,0.00048838,7]
[358528540,1745235047676,-500.0,0.00048838,7]
[358528541,1745235047686,-500.0,0.00048838,7]
[358528542,1745235047695,-500.0,0.00048838,7]
[358528543,1745235047704,-389.39344541,0.00048838,7]
[358528544,1745235047714,-22422.62698446,0.00048839,120]
[358528545,1745235047724,-636.71,0.00048839,7]
[358528546,1745235047733,-1165.11,0.00048839,7]
[358528547,1745235047744,-500.0,0.00048839,7]
[358528548,1745235047753,-500.0,0.00048839,7]
[358528549,1745235047762,-346.00250637,0.00048839,7]
[358528550,1745235047772,-500.0,0.00048839,7]